[Event "Late-Titled-Tuesday-Blitz-May-28-2024"]
[Site "Chess.com"]
[Date "2024.05.28"]
[Round "9"]
[White "Jospem"]
[Black "hansen"]
[Result "1/2-1/2"]
[WhiteElo "3039"]
[BlackElo "3065"]
[TimeControl "180+1"]
[EndTime "15:46:22 PDT"]
[Termination "Game drawn by repetition"]

1. e4 {[%clk 0:03:00.9]} 1... e5 {[%clk 0:02:58.8]} 2. Nf3 {[%clk 0:03:01.4]}
2... Nc6 {[%clk 0:02:59]} 3. Nc3 {[%clk 0:03:02.3]} 3... Nf6 {[%clk 0:02:57.8]}
4. g3 {[%clk 0:03:02.7]} 4... Bb4 {[%clk 0:02:53.5]} 5. d3 {[%clk 0:02:51.4]}
5... d5 {[%clk 0:02:39.7]} 6. exd5 {[%clk 0:02:51.5]} 6... Nxd5 {[%clk 0:02:40]}
7. Bd2 {[%clk 0:02:51.5]} 7... O-O {[%clk 0:02:32.1]} 8. Bg2 {[%clk 0:02:51]}
8... Bxc3 {[%clk 0:02:26.8]} 9. bxc3 {[%clk 0:02:49.8]} 9... h6 {[%clk
0:02:20.6]} 10. O-O {[%clk 0:02:49.2]} 10... Re8 {[%clk 0:02:12.6]} 11. Re1
{[%clk 0:02:48.5]} 11... Nf6 {[%clk 0:02:05.9]} 12. Rb1 {[%clk 0:02:19]} 12...
Rb8 {[%clk 0:02:00]} 13. Be3 {[%clk 0:01:54.1]} 13... b6 {[%clk 0:01:53]} 14.
Nh4 {[%clk 0:01:37.3]} 14... Bb7 {[%clk 0:01:37.3]} 15. Bd2 {[%clk 0:01:37.7]}
15... Qd7 {[%clk 0:01:26.5]} 16. c4 {[%clk 0:01:09.3]} 16... Nd4 {[%clk
0:01:26.2]} 17. Bxb7 {[%clk 0:01:07.2]} 17... Rxb7 {[%clk 0:01:27.1]} 18. Bc3
{[%clk 0:01:07]} 18... c5 {[%clk 0:01:27.2]} 19. Bxd4 {[%clk 0:01:07.2]} 19...
Qxd4 {[%clk 0:01:05.6]} 20. Nf5 {[%clk 0:01:05.7]} 20... Qd7 {[%clk 0:01:03.9]}
21. Qf3 {[%clk 0:01:05.8]} 21... Re6 {[%clk 0:00:59.8]} 22. Re2 {[%clk
0:00:47.4]} 22... Rb8 {[%clk 0:00:59.2]} 23. Rbe1 {[%clk 0:00:45.9]} 23... Rbe8
{[%clk 0:00:59.8]} 24. h3 {[%clk 0:00:43.7]} 24... Kf8 {[%clk 0:00:44]} 25. g4
{[%clk 0:00:43.5]} 25... Nh7 {[%clk 0:00:36.8]} 26. Qg3 {[%clk 0:00:42.8]} 26...
Qc7 {[%clk 0:00:17.8]} 27. Ne3 {[%clk 0:00:43.1]} 27... Nf6 {[%clk 0:00:16.6]}
28. Nd5 {[%clk 0:00:43.7]} 28... Qd6 {[%clk 0:00:15.5]} 29. Nxf6 {[%clk
0:00:43.3]} 29... gxf6 {[%clk 0:00:15.9]} 30. Re4 {[%clk 0:00:40.7]} 30... Qc6
{[%clk 0:00:11.7]} 31. Qe3 {[%clk 0:00:27]} 31... Kg7 {[%clk 0:00:11.4]} 32. Qd2
{[%clk 0:00:26.9]} 32... Rd6 {[%clk 0:00:08.4]} 33. R1e3 {[%clk 0:00:12.4]}
33... Rd4 {[%clk 0:00:08]} 34. Qe2 {[%clk 0:00:13]} 34... Red8 {[%clk
0:00:05.7]} 35. Kh2 {[%clk 0:00:11.2]} 35... a6 {[%clk 0:00:06]} 36. h4 {[%clk
0:00:11.2]} 36... b5 {[%clk 0:00:06]} 37. cxb5 {[%clk 0:00:07.9]} 37... axb5
{[%clk 0:00:06.9]} 38. Rg3 {[%clk 0:00:08.5]} 38... c4 {[%clk 0:00:05.9]} 39. g5
{[%clk 0:00:09.1]} 39... hxg5 {[%clk 0:00:05.9]} 40. hxg5 {[%clk 0:00:09.5]}
40... f5 {[%clk 0:00:06.5]} 41. Rxd4 {[%clk 0:00:06.3]} 41... Rh8+ {[%clk
0:00:05]} 42. Rh3 {[%clk 0:00:06.3]} 42... Rxh3+ {[%clk 0:00:05.2]} 43. Kxh3
{[%clk 0:00:07.2]} 43... Qh1+ {[%clk 0:00:05.5]} 44. Kg3 {[%clk 0:00:07.5]}
44... Qg1+ {[%clk 0:00:03.3]} 45. Kh3 {[%clk 0:00:08.1]} 45... Qh1+ {[%clk
0:00:03.7]} 46. Kg3 {[%clk 0:00:08.4]} 46... Qg1+ {[%clk 0:00:04.2]} 47. Kf3
{[%clk 0:00:04.5]} 47... Qh1+ {[%clk 0:00:04.4]} 48. Ke3 {[%clk 0:00:04.2]}
48... Qh3+ {[%clk 0:00:03]} 49. Kd2 {[%clk 0:00:03.7]} 49... exd4 {[%clk
0:00:03.3]} 50. Qe5+ {[%clk 0:00:04.3]} 50... Kh7 {[%clk 0:00:03.6]} 51. Qxd4
{[%clk 0:00:04.1]} 51... Qf3 {[%clk 0:00:03.8]} 52. Qe3 {[%clk 0:00:04.3]} 52...
Qd5 {[%clk 0:00:03.8]} 53. Qh3+ {[%clk 0:00:03.9]} 53... Kg7 {[%clk 0:00:04]}
54. Qe3 {[%clk 0:00:03.4]} 54... Kg6 {[%clk 0:00:04]} 55. f4 {[%clk 0:00:03.6]}
55... cxd3 {[%clk 0:00:04.2]} 56. Qxd3 {[%clk 0:00:04.5]} 56... Qxa2 {[%clk
0:00:04]} 57. Qxb5 {[%clk 0:00:03]} 57... Qe6 {[%clk 0:00:03.7]} 58. Qd3 {[%clk
0:00:03.2]} 58... Qc6 {[%clk 0:00:03.2]} 59. c4 {[%clk 0:00:03]} 59... Qc5
{[%clk 0:00:03.8]} 60. Kc2 {[%clk 0:00:01.6]} 60... Qb4 {[%clk 0:00:03.5]} 61.
Qc3 {[%clk 0:00:01.9]} 61... Qc5 {[%clk 0:00:04]} 62. Kb3 {[%clk 0:00:02.5]}
62... Qb6+ {[%clk 0:00:04.3]} 63. Ka4 {[%clk 0:00:02.9]} 63... Qa6+ {[%clk
0:00:04.8]} 64. Kb4 {[%clk 0:00:03.5]} 64... Qb6+ {[%clk 0:00:05.5]} 65. Ka3
{[%clk 0:00:04.2]} 65... Qa6+ {[%clk 0:00:05.9]} 66. Kb2 {[%clk 0:00:04.9]}
66... Qb6+ {[%clk 0:00:06.5]} 67. Kc2 {[%clk 0:00:03.4]} 67... Qf2+ {[%clk
0:00:06.5]} 68. Qd2 {[%clk 0:00:03.5]} 68... Qc5 {[%clk 0:00:06.2]} 69. Qd5
{[%clk 0:00:03.9]} 69... Qf2+ {[%clk 0:00:06.4]} 70. Kb3 {[%clk 0:00:04.5]}
70... Qxf4 {[%clk 0:00:06.2]} 71. c5 {[%clk 0:00:04.9]} 71... Qe3+ {[%clk
0:00:06.7]} 72. Kb4 {[%clk 0:00:04.4]} 72... Qe1+ {[%clk 0:00:07.1]} 73. Kb5
{[%clk 0:00:04.6]} 73... Qe2+ {[%clk 0:00:07.3]} 74. Kb6 {[%clk 0:00:04.7]}
74... Qb2+ {[%clk 0:00:07.1]} 75. Ka7 {[%clk 0:00:04.2]} 75... Qa3+ {[%clk
0:00:07.1]} 76. Kb8 {[%clk 0:00:04.3]} 76... Qb4+ {[%clk 0:00:07.2]} 77. Ka7
{[%clk 0:00:04.4]} 77... Qa4+ {[%clk 0:00:07.1]} 78. Kb6 {[%clk 0:00:04.5]}
78... Qb4+ {[%clk 0:00:06.5]} 79. Kc7 {[%clk 0:00:05]} 79... Qa5+ {[%clk
0:00:06.7]} 80. Kd7 {[%clk 0:00:04.2]} 80... Qa7+ {[%clk 0:00:06.4]} 81. Kd6
{[%clk 0:00:02.6]} 81... Qb8+ {[%clk 0:00:06.3]} 82. Kd7 {[%clk 0:00:02.8]}
82... Qa7+ {[%clk 0:00:06.8]} 83. Kc8 {[%clk 0:00:02.5]} 83... Qa6+ {[%clk
0:00:06.6]} 84. Kc7 {[%clk 0:00:02]} 84... Qa7+ {[%clk 0:00:06.8]} 85. Kc8
{[%clk 0:00:02]} 85... Qa6+ {[%clk 0:00:07.2]} 86. Kb8 {[%clk 0:00:02.6]} 86...
Qb5+ {[%clk 0:00:07.2]} 87. Kc7 {[%clk 0:00:03.1]} 87... Qa5+ {[%clk 0:00:07.6]}
88. Kc8 {[%clk 0:00:02.9]} 88... Qa6+ {[%clk 0:00:07.6]} 1/2-1/2

[Event "Late-Titled-Tuesday-Blitz-May-28-2024"]
[Site "Chess.com"]
[Date "2024.05.28"]
[Round "9"]
[White "Eloist"]
[Black "ChadBiryani"]
[Result "1/2-1/2"]
[WhiteElo "2452"]
[BlackElo "2540"]
[TimeControl "180+1"]
[EndTime "15:46:24 PDT"]
[Termination "Game drawn by stalemate"]

1. e4 {[%clk 0:02:56]} 1... c5 {[%clk 0:02:59.1]} 2. Nf3 {[%clk 0:02:56.1]} 2...
d6 {[%clk 0:02:59.2]} 3. Bb5+ {[%clk 0:02:55.9]} 3... Bd7 {[%clk 0:02:58.3]} 4.
Bxd7+ {[%clk 0:02:55.9]} 4... Nxd7 {[%clk 0:02:58.4]} 5. O-O {[%clk 0:02:55.5]}
5... Ngf6 {[%clk 0:02:58.7]} 6. Qe2 {[%clk 0:02:55.7]} 6... e6 {[%clk
0:02:53.8]} 7. d4 {[%clk 0:02:54.4]} 7... cxd4 {[%clk 0:02:48.4]} 8. Nxd4 {[%clk
0:02:55.3]} 8... Be7 {[%clk 0:02:48]} 9. c4 {[%clk 0:02:55.2]} 9... O-O {[%clk
0:02:47]} 10. b3 {[%clk 0:02:54.5]} 10... a6 {[%clk 0:02:27.5]} 11. Bb2 {[%clk
0:02:54.3]} 11... Rc8 {[%clk 0:02:27.3]} 12. Nc3 {[%clk 0:02:53.8]} 12... Qa5
{[%clk 0:02:20.7]} 13. Rad1 {[%clk 0:02:48.2]} 13... Rfd8 {[%clk 0:02:20.3]} 14.
f4 {[%clk 0:02:39.8]} 14... Rc5 {[%clk 0:01:45.2]} 15. a3 {[%clk 0:02:33.1]}
15... Rh5 {[%clk 0:01:42.7]} 16. b4 {[%clk 0:02:30.2]} 16... Qb6 {[%clk
0:01:38]} 17. Kh1 {[%clk 0:02:20.6]} 17... Rh6 {[%clk 0:01:23.2]} 18. e5 {[%clk
0:02:13.6]} 18... Ne8 {[%clk 0:01:11.6]} 19. Ne4 {[%clk 0:02:01.8]} 19... dxe5
{[%clk 0:01:03.8]} 20. c5 {[%clk 0:01:58.9]} 20... Qc7 {[%clk 0:00:58.2]} 21.
fxe5 {[%clk 0:01:57.7]} 21... Qxe5 {[%clk 0:00:47.3]} 22. Nf3 {[%clk 0:01:50]}
22... Qc7 {[%clk 0:00:43.5]} 23. Rd3 {[%clk 0:01:41.6]} 23... Ndf6 {[%clk
0:00:37.4]} 24. Rfd1 {[%clk 0:01:40.4]} 24... Rxd3 {[%clk 0:00:37]} 25. Rxd3
{[%clk 0:01:39.5]} 25... Ng4 {[%clk 0:00:36.4]} 26. h3 {[%clk 0:01:37.2]} 26...
Ngf6 {[%clk 0:00:33.9]} 27. Be5 {[%clk 0:01:35.2]} 27... Qc6 {[%clk 0:00:30.9]}
28. Nf2 {[%clk 0:01:19.6]} 28... a5 {[%clk 0:00:19.7]} 29. Bf4 {[%clk
0:01:19.5]} 29... Rh5 {[%clk 0:00:09.3]} 30. Ne5 {[%clk 0:01:13.3]} 30... Rxe5
{[%clk 0:00:08.6]} 31. Bxe5 {[%clk 0:01:10.1]} 31... axb4 {[%clk 0:00:08.2]} 32.
axb4 {[%clk 0:01:09.8]} 32... Nd5 {[%clk 0:00:07.3]} 33. Qe4 {[%clk 0:00:56.5]}
33... Qa4 {[%clk 0:00:04.8]} 34. Bxg7 {[%clk 0:00:35.5]} 34... Nxg7 {[%clk
0:00:04.2]} 35. Rxd5 {[%clk 0:00:31.8]} 35... Qa1+ {[%clk 0:00:04]} 36. Kh2
{[%clk 0:00:30.9]} 36... exd5 {[%clk 0:00:04.3]} 37. Qxe7 {[%clk 0:00:30.8]}
37... Ne6 {[%clk 0:00:03.5]} 38. Ng4 {[%clk 0:00:29.5]} 38... Kg7 {[%clk
0:00:02.7]} 39. Qxb7 {[%clk 0:00:25.4]} 39... h5 {[%clk 0:00:03.3]} 40. Nf2
{[%clk 0:00:20.2]} 40... Qe5+ {[%clk 0:00:03.7]} 41. g3 {[%clk 0:00:18.9]} 41...
Qe2 {[%clk 0:00:03.8]} 42. Kg2 {[%clk 0:00:17.9]} 42... d4 {[%clk 0:00:03.2]}
43. Qf3 {[%clk 0:00:16.3]} 43... Qe5 {[%clk 0:00:03.2]} 44. Nd3 {[%clk
0:00:15.5]} 44... Qc7 {[%clk 0:00:01.9]} 45. Qe4 {[%clk 0:00:14.6]} 45... Qa7
{[%clk 0:00:02.1]} 46. Qe5+ {[%clk 0:00:14.5]} 46... Kg8 {[%clk 0:00:02.1]} 47.
Nf4 {[%clk 0:00:13.2]} 47... Qa2+ {[%clk 0:00:02.3]} 48. Kf3 {[%clk 0:00:13.1]}
48... Qb3+ {[%clk 0:00:02.7]} 49. Ke4 {[%clk 0:00:12.6]} 49... Qc2+ {[%clk
0:00:01.5]} 50. Kd5 {[%clk 0:00:12.3]} 50... Qb3+ {[%clk 0:00:02.1]} 51. Kc6
{[%clk 0:00:12.4]} 51... Qxb4 {[%clk 0:00:02.4]} 52. Nxe6 {[%clk 0:00:11.9]}
52... fxe6 {[%clk 0:00:02.2]} 53. Qxe6+ {[%clk 0:00:12.2]} 53... Kg7 {[%clk
0:00:02.8]} 54. Qe5+ {[%clk 0:00:11.8]} 54... Kg6 {[%clk 0:00:03.4]} 55. Qe4+
{[%clk 0:00:11.3]} 55... Kg7 {[%clk 0:00:03.7]} 56. Kd6 {[%clk 0:00:11.4]} 56...
Qc4 {[%clk 0:00:03]} 57. Qe5+ {[%clk 0:00:10.5]} 57... Kg6 {[%clk 0:00:03.1]}
58. c6 {[%clk 0:00:10.8]} 58... d3 {[%clk 0:00:03.2]} 59. Qe8+ {[%clk
0:00:07.8]} 59... Kg7 {[%clk 0:00:03.2]} 60. c7 {[%clk 0:00:07]} 60... d2 {[%clk
0:00:03.7]} 61. Qd7+ {[%clk 0:00:06.8]} 61... Kg6 {[%clk 0:00:03.7]} 62. Ke7
{[%clk 0:00:07.1]} 62... Qe4+ {[%clk 0:00:03.1]} 63. Kd8 {[%clk 0:00:07.1]}
63... Qa8+ {[%clk 0:00:02.3]} 64. c8=Q {[%clk 0:00:07.2]} 64... Qa5+ {[%clk
0:00:02.1]} 65. Qcc7 {[%clk 0:00:07]} 65... Qa8+ {[%clk 0:00:01.7]} 66. Ke7
{[%clk 0:00:07.3]} 66... Qe4+ {[%clk 0:00:02]} 67. Qe6+ {[%clk 0:00:07.2]} 67...
Qxe6+ {[%clk 0:00:02.5]} 68. Kxe6 {[%clk 0:00:07.3]} 68... d1=Q {[%clk
0:00:03.4]} 69. Qf7+ {[%clk 0:00:07.5]} 69... Kh6 {[%clk 0:00:03.7]} 70. Qf6+
{[%clk 0:00:07.7]} 70... Kh7 {[%clk 0:00:04.1]} 71. Qf5+ {[%clk 0:00:08]} 71...
Kh6 {[%clk 0:00:04.2]} 72. Qf8+ {[%clk 0:00:07]} 72... Kh7 {[%clk 0:00:04.3]}
73. Qf7+ {[%clk 0:00:06.1]} 73... Kh6 {[%clk 0:00:04.5]} 74. Qf4+ {[%clk
0:00:06.1]} 74... Kh7 {[%clk 0:00:04.6]} 75. Kf6 {[%clk 0:00:06.4]} 75... Qd8+
{[%clk 0:00:04.6]} 76. Kf5 {[%clk 0:00:06.1]} 76... Qf8+ {[%clk 0:00:04.7]} 77.
Ke4 {[%clk 0:00:06.4]} 77... Qe7+ {[%clk 0:00:04.3]} 78. Kf3 {[%clk 0:00:06.8]}
78... Qa3+ {[%clk 0:00:02.2]} 79. Qe3 {[%clk 0:00:06.7]} 79... Qd6 {[%clk
0:00:01]} 80. Qe4+ {[%clk 0:00:06.7]} 80... Kh6 {[%clk 0:00:01.6]} 81. Qf4+
{[%clk 0:00:06.4]} 81... Qxf4+ {[%clk 0:00:02.3]} 82. Kxf4 {[%clk 0:00:07]}
82... Kg6 {[%clk 0:00:02.9]} 83. Ke5 {[%clk 0:00:07.1]} 83... h4 {[%clk
0:00:03.4]} 84. g4 {[%clk 0:00:06.9]} 84... Kg5 {[%clk 0:00:04.1]} 85. Ke4
{[%clk 0:00:07.2]} 85... Kg6 {[%clk 0:00:03.7]} 86. Kf4 {[%clk 0:00:08.1]} 86...
Kh6 {[%clk 0:00:03.4]} 87. g5+ {[%clk 0:00:08.2]} 87... Kh5 {[%clk 0:00:04.1]}
88. Kf5 {[%clk 0:00:03.1]} 1/2-1/2

[Event "Late-Titled-Tuesday-Blitz-May-28-2024"]
[Site "Chess.com"]
[Date "2024.05.28"]
[Round "9"]
[White "rezamahdavi2008"]
[Black "GarayevKanan"]
[Result "1-0"]
[WhiteElo "2997"]
[BlackElo "2731"]
[TimeControl "180+1"]
[EndTime "15:46:46 PDT"]
[Termination "rezamahdavi2008 won on time"]

1. e4 {[%clk 0:02:58.9]} 1... c5 {[%clk 0:02:59.3]} 2. Nf3 {[%clk 0:02:58.9]}
2... e6 {[%clk 0:02:58.2]} 3. d4 {[%clk 0:02:55.1]} 3... cxd4 {[%clk 0:02:59.1]}
4. Nxd4 {[%clk 0:02:56]} 4... Nf6 {[%clk 0:02:58.8]} 5. Nc3 {[%clk 0:02:56.2]}
5... Nc6 {[%clk 0:02:59.3]} 6. Nxc6 {[%clk 0:02:56.8]} 6... bxc6 {[%clk
0:03:00.2]} 7. e5 {[%clk 0:02:57.7]} 7... Nd5 {[%clk 0:02:59.9]} 8. Ne4 {[%clk
0:02:58.4]} 8... Qc7 {[%clk 0:02:59.9]} 9. f4 {[%clk 0:02:59.1]} 9... Rb8 {[%clk
0:02:59.2]} 10. a3 {[%clk 0:02:58]} 10... f5 {[%clk 0:02:58]} 11. exf6 {[%clk
0:02:57.6]} 11... Nxf6 {[%clk 0:02:56.1]} 12. Nxf6+ {[%clk 0:02:57.7]} 12...
gxf6 {[%clk 0:02:57]} 13. Bd3 {[%clk 0:02:50.9]} 13... Qa5+ {[%clk 0:02:54]} 14.
Bd2 {[%clk 0:02:34.9]} 14... Qd5 {[%clk 0:02:52.6]} 15. Bc3 {[%clk 0:02:34]}
15... Be7 {[%clk 0:02:41.3]} 16. Qe2 {[%clk 0:02:30.6]} 16... Rg8 {[%clk
0:02:22.7]} 17. Be4 {[%clk 0:02:28.8]} 17... Qb5 {[%clk 0:02:16.1]} 18. Bxh7
{[%clk 0:02:01.2]} 18... Qxe2+ {[%clk 0:02:12.3]} 19. Kxe2 {[%clk 0:02:02.1]}
19... Rxg2+ {[%clk 0:02:12.6]} 20. Kf3 {[%clk 0:02:02.8]} 20... Rg7 {[%clk
0:02:13.1]} 21. Bd3 {[%clk 0:02:03.5]} 21... c5 {[%clk 0:02:11.2]} 22. Rhg1
{[%clk 0:02:02.2]} 22... Bb7+ {[%clk 0:02:11.2]} 23. Kf2 {[%clk 0:02:01.1]}
23... Kf7 {[%clk 0:01:37.9]} 24. Rxg7+ {[%clk 0:01:58]} 24... Kxg7 {[%clk
0:01:38.8]} 25. Rg1+ {[%clk 0:01:58.1]} 25... Kf7 {[%clk 0:01:39.4]} 26. Bg6+
{[%clk 0:01:51.7]} 26... Kf8 {[%clk 0:01:38.7]} 27. h4 {[%clk 0:01:44.6]} 27...
c4 {[%clk 0:01:34.4]} 28. Bd4 {[%clk 0:01:43.4]} 28... e5 {[%clk 0:01:31.8]} 29.
fxe5 {[%clk 0:01:41.5]} 29... fxe5 {[%clk 0:01:32.7]} 30. Bxe5 {[%clk
0:01:38.6]} 30... Bxh4+ {[%clk 0:01:25]} 31. Ke3 {[%clk 0:01:33.7]} 31... Re8
{[%clk 0:01:19.4]} 32. Bxe8 {[%clk 0:01:30.8]} 32... Kxe8 {[%clk 0:01:20.3]} 33.
Rg4 {[%clk 0:01:26.2]} 33... Be7 {[%clk 0:01:16.3]} 34. Rxc4 {[%clk 0:01:26.2]}
34... Bc6 {[%clk 0:01:17.2]} 35. Rg4 {[%clk 0:01:21.4]} 35... Kf7 {[%clk
0:01:16.6]} 36. c4 {[%clk 0:01:18.3]} 36... Ke6 {[%clk 0:01:15.8]} 37. Bd4
{[%clk 0:01:18.4]} 37... a5 {[%clk 0:01:11.1]} 38. Bc3 {[%clk 0:01:16]} 38... a4
{[%clk 0:01:08.9]} 39. Rg6+ {[%clk 0:01:14.7]} 39... Kf5 {[%clk 0:01:08.5]} 40.
Rg8 {[%clk 0:01:14.4]} 40... Bc5+ {[%clk 0:01:00.5]} 41. Kd2 {[%clk 0:01:14.6]}
41... Ke4 {[%clk 0:00:58.5]} 42. Re8+ {[%clk 0:01:14.4]} 42... Kf3 {[%clk
0:00:58.9]} 43. Kd3 {[%clk 0:01:11.1]} 43... Kf4 {[%clk 0:00:44.8]} 44. Bb4
{[%clk 0:01:04]} 44... Bg1 {[%clk 0:00:42.1]} 45. Bd6+ {[%clk 0:01:03.9]} 45...
Kf5 {[%clk 0:00:41.1]} 46. Kc3 {[%clk 0:00:59.5]} 46... Kf6 {[%clk 0:00:36.7]}
47. Re1 {[%clk 0:00:53.6]} 47... Bb6 {[%clk 0:00:33.4]} 48. Kb4 {[%clk
0:00:51.5]} 48... Bd4 {[%clk 0:00:31.3]} 49. Re2 {[%clk 0:00:48.2]} 49... Kf5
{[%clk 0:00:30.8]} 50. Bg3 {[%clk 0:00:43.8]} 50... Kg4 {[%clk 0:00:30.4]} 51.
Be1 {[%clk 0:00:42.9]} 51... Kf3 {[%clk 0:00:29.4]} 52. Rh2 {[%clk 0:00:41.9]}
52... Be5 {[%clk 0:00:25.5]} 53. Rc2 {[%clk 0:00:39.4]} 53... Ke3 {[%clk
0:00:21.1]} 54. Bc3 {[%clk 0:00:38.3]} 54... Bd6+ {[%clk 0:00:21.1]} 55. Ka5
{[%clk 0:00:38.5]} 55... Bc7+ {[%clk 0:00:20.5]} 56. Ka6 {[%clk 0:00:38.9]}
56... Kd3 {[%clk 0:00:20.3]} 57. Rc1 {[%clk 0:00:35.4]} 57... Kxc4 {[%clk
0:00:20.8]} 58. Be5+ {[%clk 0:00:33]} 58... Kb3 {[%clk 0:00:21.3]} 59. Bxc7
{[%clk 0:00:32.6]} 59... Kxb2 {[%clk 0:00:22]} 60. Bf4 {[%clk 0:00:28.1]} 60...
Kxa3 {[%clk 0:00:22]} 61. Ka5 {[%clk 0:00:28.1]} 61... Kb2 {[%clk 0:00:20.4]}
62. Kb4 {[%clk 0:00:26.2]} 62... a3 {[%clk 0:00:20.9]} 63. Rf1 {[%clk
0:00:25.7]} 63... a2 {[%clk 0:00:19.9]} 64. Rf2+ {[%clk 0:00:26]} 64... Kb1
{[%clk 0:00:20.5]} 65. Be5 {[%clk 0:00:26.7]} 65... Bd5 {[%clk 0:00:17.9]} 66.
Ka3 {[%clk 0:00:23.9]} 66... Bc4 {[%clk 0:00:14.8]} 67. Kb4 {[%clk 0:00:19.5]}
67... d5 {[%clk 0:00:14.7]} 68. Rg2 {[%clk 0:00:13.8]} 68... Kc1 {[%clk
0:00:07.1]} 69. Ba1 {[%clk 0:00:13]} 69... Kd1 {[%clk 0:00:04.6]} 70. Kc3 {[%clk
0:00:13]} 70... Ke1 {[%clk 0:00:04.3]} 71. Kd4 {[%clk 0:00:12.6]} 71... Kf1
{[%clk 0:00:04.3]} 72. Rc2 {[%clk 0:00:11.9]} 72... Ke1 {[%clk 0:00:04.5]} 73.
Rg2 {[%clk 0:00:10.5]} 73... Kd1 {[%clk 0:00:04.1]} 74. Rh2 {[%clk 0:00:08.6]}
74... Kc1 {[%clk 0:00:03.6]} 75. Kc3 {[%clk 0:00:06.2]} 75... Kd1 {[%clk
0:00:04.2]} 76. Rh1+ {[%clk 0:00:04.7]} 76... Ke2 {[%clk 0:00:04.7]} 77. Bb2
{[%clk 0:00:05.4]} 77... Ke3 {[%clk 0:00:04.2]} 78. Re1+ {[%clk 0:00:05.3]}
78... Kf2 {[%clk 0:00:04.6]} 79. Re7 {[%clk 0:00:05.7]} 79... Kf1 {[%clk
0:00:04.6]} 80. Kd2 {[%clk 0:00:05.9]} 80... Kf2 {[%clk 0:00:04.2]} 81. Rf7+
{[%clk 0:00:06.2]} 81... Kg3 {[%clk 0:00:04.7]} 82. Rf8 {[%clk 0:00:06.1]} 82...
Kg4 {[%clk 0:00:05]} 83. Ke3 {[%clk 0:00:06.6]} 83... Kg5 {[%clk 0:00:05.2]} 84.
Bd4 {[%clk 0:00:05.6]} 84... Kg6 {[%clk 0:00:05.1]} 85. Kf4 {[%clk 0:00:06.2]}
85... Bb3 {[%clk 0:00:02.7]} 86. Rf6+ {[%clk 0:00:05.8]} 86... Kh5 {[%clk
0:00:03]} 87. Rb6 {[%clk 0:00:05.6]} 87... Bc4 {[%clk 0:00:02.5]} 88. Bg7 {[%clk
0:00:04.9]} 1-0